fUSD/lending_fUSD_20250217
["ID","MTS","AMOUNT","RATE_DAILY","PERIOD"]
[353346436,1739787057899,-606.17239037,0.0001378,2]
[353346437,1739787057908,-500.0,0.0001378,2]
[353346438,1739787057917,-500.0,0.0001378,2]
[353346439,1739787057926,-500.0,0.0001378,2]
[353346440,1739787057935,-500.0,0.0001378,2]
[353346441,1739787057945,-500.0,0.0001378,2]
[353346442,1739787057954,-500.0,0.0001378,2]
[353346443,1739787057963,-500.0,0.0001378,2]
[353346444,1739787057972,-625.59040522,0.0001378,2]
[353346445,1739787057982,-500.0,0.0001378,2]
[353346446,1739787057991,-500.0,0.0001378,2]
[353346447,1739787058000,-500.0,0.0001378,2]
[353346448,1739787058009,-500.0,0.0001378,2]
[353346449,1739787058019,-500.0,0.0001378,2]
[353346450,1739787058028,-500.0,0.0001378,2]
[353346451,1739787058038,-506.31,0.0001378,2]
[353346452,1739787058048,-500.0,0.0001378,2]
[353346453,1739787058057,-500.0,0.0001378,2]
[353346454,1739787058068,-500.0,0.0001378,2]
[353346455,1739787058078,-500.0,0.0001378,2]
[353346456,1739787058088,-500.0,0.0001378,2]
[353346457,1739787058098,-500.0,0.0001378,2]
[353346458,1739787058108,-500.0,0.0001378,2]
[353346459,1739787058117,-500.0,0.0001378,2]
[353346460,1739787058127,-500.0,0.0001378,2]
[353346461,1739787058137,-500.0,0.0001378,2]
[353346462,1739787058147,-672.89,0.0001378,2]
[353346463,1739787058156,-500.0,0.0001378,2]
[353346464,1739787058166,-500.0,0.0001378,2]
[353346465,1739787058175,-595.08,0.0001378,2]
[353346466,1739787058185,-575.72,0.0001378,2]
[353346467,1739787058194,-500.0,0.0001378,2]
[353346468,1739787058204,-500.0,0.0001378,2]
[353346469,1739787058213,-650.94,0.0001378,2]
[353346470,1739787058223,-500.0,0.0001378,2]
[353346471,1739787058232,-510.66,0.0001378,2]
[353346472,1739787058242,-520.74314573,0.0001378,2]
[353346473,1739787058252,-511.78185647,0.0001378,2]
[353346474,1739787058262,-500.0,0.0001378,2]
[353346475,1739787058271,-741.08,0.0001378,2]
[353346476,1739787058281,-500.0,0.0001378,2]
[353346477,1739787058290,-500.0,0.0001378,2]
[353346478,1739787058300,-504.02152965,0.0001378,2]
[353346479,1739787058310,-500.0,0.0001378,2]
[353346480,1739787058320,-557.4,0.0001378,2]
[353346481,1739787058330,-500.0,0.0001378,2]
[353346482,1739787058340,-585.71287501,0.0001378,2]
[353346483,1739787058403,-637.71,0.0001378,2]
[353346484,1739787058415,-500.0,0.0001378,2]
[353346485,1739787058425,-500.0,0.0001378,2]
[353346486,1739787058435,-500.0,0.0001378,2]
[353346487,1739787058446,-500.0,0.0001378,2]
[353346488,1739787058456,-500.0,0.0001378,2]
[353346489,1739787058466,-630.41,0.0001378,2]
[353346490,1739787058477,-500.0,0.0001378,2]
[353346491,1739787058488,-500.0,0.0001378,2]
[353346492,1739787058497,-500.0,0.0001378,2]
[353346493,1739787058506,-500.0,0.0001378,2]
[353346494,1739787058515,-500.0,0.0001378,2]
[353346495,1739787058525,-500.0,0.0001378,2]
[353346496,1739787058534,-500.0,0.0001378,2]
[353346497,1739787058544,-500.0,0.0001378,2]
[353346498,1739787058553,-500.0,0.0001378,2]
[353346499,1739787058563,-500.0,0.0001378,2]
[353346500,1739787058573,-288.5413048,0.0001378,2]
[353346501,1739787059436,-500.0,0.00013698,2]
[353346502,1739787059446,-192.23170001,0.00013698,2]
[353346503,1739787059462,-307.76829999,0.00013698,2]
[353346504,1739787059471,-375.89203792,0.00013698,2]
[353346505,1739787059481,-1604.0,0.000137,2]
[353346506,1739787059490,-211.4586952,0.0001378,2]
[353346507,1739787059500,-500.0,0.0001378,2]
[353346508,1739787059509,-152.217123,0.0001378,2]
[353346509,1739787059518,-500.0,0.0001378,2]
[353346510,1739787059528,-500.0,0.0001378,2]
[353346511,1739787059537,-500.0,0.0001378,2]
[353346512,1739787059546,-500.0,0.0001378,2]
[353346513,1739787059555,-500.0,0.0001378,2]
[353346514,1739787059564,-500.0,0.0001378,2]
[353346515,1739787059573,-151.0,0.0001378,2]
[353346516,1739787059582,-500.0,0.0001378,2]
[353346517,1739787059591,-500.0,0.0001378,2]
[353346518,1739787059600,-500.0,0.0001378,2]
[353346519,1739787059609,-500.0,0.0001378,2]
[353346520,1739787059619,-579.3,0.0001378,2]
[353346521,1739787059627,-917.47,0.0001378,2]
[353346522,1739787059636,-500.0,0.0001378,2]
[353346523,1739787059645,-500.0,0.0001378,2]
[353346524,1739787059654,-500.0,0.0001378,2]
[353346525,1739787059663,-500.0,0.0001378,2]
[353346526,1739787059672,-500.0,0.0001378,2]
[353346527,1739787059681,-500.0,0.0001378,2]
[353346528,1739787059690,-500.0,0.0001378,2]
[353346529,1739787059699,-500.0,0.0001378,2]
[353346530,1739787059708,-500.0,0.0001378,2]
[353346531,1739787059717,-500.0,0.0001378,2]
[353346532,1739787059726,-500.0,0.0001378,2]
[353346533,1739787059735,-513.34818159,0.0001378,2]
[353346534,1739787059744,-500.0,0.0001378,2]
[353346535,1739787059755,-500.0,0.0001378,2]
[353346536,1739787059765,-500.0,0.0001378,2]
[353346537,1739787059774,-500.0,0.0001378,2]
[353346538,1739787059783,-500.0,0.0001378,2]
[353346539,1739787059791,-500.0,0.0001378,2]
[353346540,1739787059800,-500.0,0.0001378,2]
[353346541,1739787059809,-641.23,0.0001378,2]
[353346542,1739787059818,-508.06,0.0001378,2]
[353346543,1739787059826,-500.0,0.0001378,2]
[353346544,1739787059835,-500.0,0.0001378,2]
[353346545,1739787059845,-500.0,0.0001378,2]
[353346546,1739787059853,-500.0,0.0001378,2]
[353346547,1739787059862,-500.0,0.0001378,2]
[353346548,1739787059872,-500.0,0.0001378,2]
[353346549,1739787059881,-570.29,0.0001378,2]
[353346550,1739787059890,-500.0,0.0001378,2]
[353346551,1739787059900,-500.0,0.0001378,2]
[353346552,1739787059909,-500.0,0.0001378,2]
[353346553,1739787059919,-500.0,0.0001378,2]
[353346554,1739787059929,-739.85,0.0001378,2]
[353346555,1739787059938,-500.0,0.0001378,2]
[353346556,1739787059949,-500.0,0.0001378,2]
[353346557,1739787059959,-500.0,0.0001378,2]
[353346558,1739787059968,-0.7453907,0.0001378,2]
[353346559,1739787059981,-499.2546093,0.0001378,2]
[353346560,1739787059991,-495.89656185,0.0001378,2]
[353346561,1739787501495,7494.21444527,0.0002,120]
[353346597,1739788232092,-395.39999862,9.933e-05,2]
[353346598,1739788232253,-704.60000138,9.933e-05,2]
[353346599,1739788232263,-814.14,9.933e-05,2]
[353346600,1739788232272,-150.0,9.999e-05,2]
[353346601,1739788232281,-550.0,0.0001,2]
[353346602,1739788232290,-427465.6147438,0.0001,2]
[353346603,1739788232299,-52938.8414234,0.0001,2]
[353346604,1739788232311,-8123.072,0.0001,2]
[353346626,1739788237974,-9694.15755793,0.0001,2]
[353346627,1739788238092,-3636.17385645,0.0001,2]
[353346628,1739788238103,-9826.98400493,0.0001,2]
[353346632,1739788240633,-498.901165,0.0001,2]
[353346643,1739788243097,-30697.49999987,0.0001,2]
[353346644,1739788243258,-746.6074987,0.0001,2]
[353346645,1739788243270,-19000.73137677,0.0001,2]
[353346646,1739788243281,-46258.61575523,0.0001,2]
[353346647,1739788243364,-64064.19459381,0.0001,2]
[353346648,1739788243374,-12482.16905879,0.0001,2]
[353346649,1739788243384,-305.19254748,0.0001,2]
[353346650,1739788243393,-93427.92388671,0.0001,2]
[353346651,1739788243402,-1000.0,0.00010058,2]
[353346652,1739788243412,-800.0,0.00010058,2]
[353346653,1739788243421,-502.9,0.00010058,2]
[353346654,1739788243431,-505.91,0.00010058,2]
[353346655,1739788243441,-503.47,0.00010058,2]
[353346656,1739788243454,-497.01,0.00010058,2]
[353346657,1739788243464,-494.5,0.00010058,2]
[353346658,1739788243474,-494.57,0.00010058,2]
[353346659,1739788243482,-509.35,0.00010058,2]
[353346660,1739788243493,-496.91,0.00010058,2]
[353346661,1739788243503,-508.11,0.00010058,2]
[353346662,1739788243512,-503.92,0.00010058,2]
[353346663,1739788243522,-504.57,0.00010058,2]
[353346664,1739788243531,-504.36,0.00010058,2]
[353346665,1739788243541,-507.7,0.00010058,2]
[353346666,1739788243550,-499.02,0.00010058,2]
[353346667,1739788243560,-504.18,0.00010058,2]
[353346668,1739788243571,-501.78,0.00010058,2]
[353346669,1739788243581,-493.52,0.00010058,2]
[353346670,1739788243590,-504.01,0.00010058,2]
[353346672,1739788243600,-504.92,0.00010058,2]
[353346674,1739788243610,-499.53,0.00010058,2]
[353346676,1739788243620,-494.73,0.00010058,2]
[353346678,1739788243630,-493.09,0.00010058,2]
[353346680,1739788243640,-497.03,0.00010058,2]
[353346681,1739788243649,-501.1,0.00010058,2]
[353346682,1739788243659,-494.24,0.00010058,2]
[353346683,1739788243668,-494.98,0.00010058,2]
[353346684,1739788243678,-495.52,0.00010058,2]
[353346685,1739788243687,-490.9,0.00010058,2]
[353346686,1739788243698,-494.25,0.00010058,2]
[353346687,1739788243707,-494.42,0.00010058,2]
[353346688,1739788243716,-491.57,0.00010058,2]
[353346689,1739788243726,-491.37,0.00010058,2]
[353346690,1739788243734,-493.87,0.00010058,2]
[353346691,1739788243745,-496.33,0.00010058,2]
[353346692,1739788243754,-503.17,0.00010058,2]
[353346693,1739788243764,-504.11,0.00010058,2]
[353346694,1739788243773,-509.68,0.00010058,2]
[353346695,1739788243782,-500.57,0.00010058,2]
[353346696,1739788243793,-505.65,0.00010058,2]
[353346697,1739788243803,-501.38,0.00010058,2]
[353346698,1739788243813,-315.7,0.00010137,2]
[353346699,1739788243823,-152.25,0.00010558,2]
[353346700,1739788243832,-152.57,0.00010558,2]
[353346701,1739788243841,-305.19254748,0.00010713,2]
[353346702,1739788243850,-226.84074859,0.000109,2]
[353346703,1739788243860,-226.84074852,0.000109,2]
[353346704,1739788243870,-200.0,0.000109,3]
[353346705,1739788243879,-1000.0,0.00010936,2]
[353346706,1739788243888,-21619.61729982,0.00011099,2]
[353346707,1739788243898,-21619.61729974,0.00011099,2]
[353346708,1739788243907,-21619.61729974,0.00011099,2]
[353346709,1739788243916,-23899.81139563,0.00011099,2]
[353346710,1739788243925,-23899.81139563,0.00011099,2]
[353346711,1739788243935,-23899.81139563,0.00011099,2]
[353346712,1739788243944,-500.0,0.00011154,2]
[353346713,1739788243954,-23899.81139563,0.00011199,2]
[353346714,1739788243964,-21619.61729974,0.00011248,2]
[353346715,1739788243973,-226.84074852,0.00011285,2]
[353346716,1739788243983,-1000.0,0.00011428,2]
[353346717,1739788243992,-800.0,0.00011428,2]
[353346718,1739788244001,-305.19254748,0.00011525,2]
[353346719,1739788244010,-23899.81139563,0.00011612,2]
[353346720,1739788244020,-250.0,0.00011636,2]
[353346721,1739788244029,-21619.61729974,0.00011678,2]
[353346722,1739788244038,-226.84074852,0.00011977,2]
[353346723,1739788244048,-600.0,0.00012,2]
[353346724,1739788244057,-23899.81139563,0.00012026,2]
[353346725,1739788244066,-21619.61729974,0.00012107,2]
[353346726,1739788244076,-814.14,0.00012197,2]
[353346727,1739788244085,-9046.97,0.00012259,2]
[353346728,1739788244094,-1000.0,0.00012302,2]
[353346729,1739788244104,-1787.0,0.00012331,2]
[353346730,1739788244113,-2937.971,0.00012331,2]
[353346731,1739788244123,-951.578,0.00012331,2]
[353346732,1739788244132,-782.0,0.00012331,2]
[353346733,1739788244141,-3286.531,0.00012331,2]
[353346734,1739788244150,-539.0,0.00012331,2]
[353346735,1739788244160,-1007.0,0.00012331,2]
[353346736,1739788244169,-3917.0,0.00012331,2]
[353346737,1739788244178,-150.0,0.00012331,2]
[353346738,1739788244187,-640.0,0.00012331,2]
[353346739,1739788244196,-1274.0,0.00012331,2]
[353346740,1739788244205,-305.19254748,0.00012338,2]
[353346741,1739788244216,-507.0,0.00012411,2]
[353346742,1739788244226,-23899.81139563,0.00012439,2]
[353346743,1739788244237,-478.45,0.00012512,2]
[353346744,1739788244248,-200.00000001,0.00012526,2]
[353346745,1739788244257,-21619.61729974,0.00012537,2]
[353346746,1739788244266,-226.84074852,0.0001267,2]
[353346747,1739788244276,-500.0,0.00012798,2]
[353346748,1739788244285,-500.0,0.00012798,2]
[353346749,1739788244294,-500.0,0.00012798,2]
[353346750,1739788244303,-500.0,0.00012798,2]
[353346751,1739788244312,-500.0,0.00012798,2]
[353346752,1739788244323,-500.0,0.00012798,2]
[353346753,1739788244333,-500.0,0.00012798,2]
[353346754,1739788244342,-500.0,0.00012798,2]
[353346755,1739788244352,-500.0,0.00012798,2]
[353346756,1739788244362,-500.0,0.00012798,2]
[353346757,1739788244372,-500.0,0.00012798,2]
[353346758,1739788244381,-500.0,0.00012798,2]
[353346759,1739788244391,-500.0,0.00012798,2]
[353346760,1739788244400,-500.0,0.00012798,2]
[353346761,1739788244409,-500.0,0.00012798,2]
[353346762,1739788244418,-500.0,0.00012798,2]
[353346763,1739788244427,-500.0,0.00012798,2]
[353346764,1739788244436,-500.0,0.00012798,2]
[353346765,1739788244447,-500.0,0.00012798,2]
[353346766,1739788244458,-500.0,0.00012798,2]
[353346767,1739788244467,-500.0,0.00012798,2]
[353346768,1739788244477,-500.0,0.00012798,2]
[353346769,1739788244488,-500.0,0.00012798,2]
[353346770,1739788244499,-500.0,0.00012798,2]
[353346771,1739788244508,-500.0,0.00012798,2]
[353346772,1739788244518,-500.0,0.00012798,2]
[353346773,1739788244528,-500.0,0.00012798,2]
[353346774,1739788244538,-500.0,0.00012798,2]
[353346775,1739788244547,-500.0,0.00012798,2]
[353346776,1739788244556,-500.0,0.00012798,2]
[353346777,1739788244567,-500.0,0.00012798,2]
[353346778,1739788244576,-711.0,0.00012798,2]
[353346779,1739788244585,-500.0,0.00012798,2]
[353346780,1739788244594,-500.0,0.00012798,2]
[353346781,1739788244604,-500.0,0.00012798,2]
[353346782,1739788244612,-500.0,0.00012798,2]
[353346783,1739788244622,-500.0,0.00012798,2]
[353346784,1739788244631,-507.0,0.00012798,2]
[353346785,1739788244640,-1000.0,0.00012798,2]
[353346786,1739788244650,-800.0,0.00012798,2]
[353346787,1739788244659,-499.2,0.00012798,2]
[353346788,1739788244668,-509.72,0.00012823,2]
[353346789,1739788244678,-198.62366344,0.00012843,2]
[353346790,1739788244687,-507.83,0.00012847,2]
[353346791,1739788244696,-23899.81139563,0.00012853,2]
[353346792,1739788244706,-493.92,0.00012897,2]
[353346793,1739788244715,-500.0,0.000129,4]
[353346794,1739788244725,-21619.61729974,0.00012967,2]
[353346795,1739788244734,-818.0,0.00013,2]
[353346796,1739788244743,-305.19254748,0.0001315,2]
[353346797,1739788244753,-159.58893329,0.00013205,2]
[353346798,1739788244761,-167.18840629,0.00013205,2]
[353346799,1739788244771,-495.09,0.00013248,2]
[353346800,1739788244781,-159.58893329,0.0001326,2]
[353346801,1739788244791,-23899.81139563,0.00013266,2]
[353346802,1739788244801,-167.18840629,0.00013315,2]
[353346803,1739788244811,-159.58893329,0.00013342,2]
[353346804,1739788244821,-226.84074852,0.00013362,2]
[353346805,1739788244830,-250386.83203996,0.0001337,2]
[353346806,1739788244840,-338.95566298,0.0001337,2]
[353346807,1739788244851,-21619.61729974,0.00013397,2]
[353346808,1739788244862,-159.58893329,0.00013397,2]
[353346809,1739788244873,-167.18840629,0.00013425,2]
[353346810,1739788244883,-159.58893329,0.00013479,2]
[353346811,1739788244892,-452.17031949,0.000135,2]
[353346812,1739788244902,-65000.0,0.000135,2]
[353346813,1739788244911,-500.0,0.000135,2]
[353346814,1739788244920,-500.0,0.000135,2]
[353346815,1739788244930,-500.0,0.000135,2]
[353346816,1739788244939,-500.0,0.000135,2]
[353346817,1739788244948,-500.0,0.000135,2]
[353346818,1739788244957,-500.0,0.000135,2]
[353346819,1739788244966,-500.0,0.000135,2]
[353346820,1739788244975,-416.5,0.000135,2]
[353346821,1739788244984,-500.0,0.000135,2]
[353346822,1739788244993,-500.0,0.000135,2]
[353346823,1739788245003,-500.0,0.000135,2]
[353346824,1739788245012,-500.0,0.000135,2]
[353346825,1739788245021,-500.0,0.000135,2]
[353346826,1739788245030,-500.0,0.000135,2]
[353346827,1739788245039,-500.0,0.000135,2]
[353346828,1739788245048,-500.0,0.000135,2]
[353346829,1739788245057,-500.0,0.000135,2]
[353346830,1739788245066,-500.0,0.000135,2]
[353346831,1739788245076,-500.0,0.000135,2]
[353346832,1739788245085,-500.0,0.000135,2]
[353346833,1739788245096,-500.0,0.000135,2]
[353346834,1739788245106,-500.0,0.000135,2]
[353346835,1739788245118,-500.0,0.000135,2]
[353346836,1739788245127,-500.0,0.000135,2]
[353346837,1739788245136,-500.0,0.000135,2]
[353346838,1739788245145,-500.0,0.000135,2]
[353346839,1739788245155,-500.0,0.000135,2]
[353346840,1739788245166,-500.0,0.000135,2]
[353346841,1739788245176,-500.0,0.000135,2]
[353346842,1739788245187,-500.0,0.000135,2]
[353346843,1739788245196,-500.0,0.000135,2]
[353346844,1739788245205,-500.0,0.000135,2]
[353346845,1739788245215,-500.0,0.000135,2]
[353346846,1739788245226,-500.0,0.000135,2]
[353346847,1739788245235,-500.0,0.000135,2]
[353346848,1739788245244,-500.0,0.000135,2]
[353346849,1739788245253,-500.0,0.000135,2]
[353346850,1739788245263,-468.68,0.000135,2]
[353346851,1739788245272,-500.0,0.000135,2]
[353346852,1739788245281,-1000.0,0.000135,2]
[353346853,1739788245290,-800.0,0.000135,4]
[353346854,1739788245300,-367.0,0.000135,2]
[353346855,1739788245309,-1096.5996326,0.00013504,2]
[353346856,1739788245319,-425.1618893,0.0001353,2]
[353346857,1739788245329,-159.58893329,0.00013562,2]
[353346858,1739788245338,-167.18840629,0.00013562,2]
[353346859,1739788245347,-2183.575,0.00013598,2]
[353346860,1739788245357,-174.918,0.00013598,2]
[353346861,1739788245366,-256.37926577,0.00013599,2]
[353346862,1739788245376,-3581.73981594,0.00013599,2]
[353346863,1739788245385,-3007.27143457,0.000136,2]
[353346864,1739788245395,-3007.27143443,0.000136,2]
[353346865,1739788245405,-3007.27143443,0.000136,2]
[353346866,1739788245414,-3007.27143443,0.000136,2]
[353346867,1739788245424,-3007.27143443,0.000136,2]
[353346868,1739788245434,-3007.27143443,0.000136,2]
[353346869,1739788245446,-3007.27143443,0.000136,2]
[353346870,1739788245457,-3007.27143443,0.000136,2]
[353346871,1739788245466,-3007.27143443,0.000136,2]
[353346872,1739788245474,-19956.68571538,0.000136,2]
[353346873,1739788245483,-3007.27143443,0.000136,2]
[353346874,1739788245492,-3007.27143443,0.000136,2]
[353346875,1739788245501,-3007.27143443,0.000136,2]
[353346876,1739788245511,-3007.27143443,0.000136,2]
[353346877,1739788245520,-3007.27143443,0.000136,2]
[353346878,1739788245530,-3007.27143443,0.000136,2]
[353346879,1739788245539,-3007.27143443,0.000136,2]
[353346880,1739788245548,-3007.27143443,0.000136,2]
[353346881,1739788245557,-3007.27143443,0.000136,2]
[353346882,1739788245566,-3007.27143443,0.000136,2]
[353346883,1739788245576,-3007.27143443,0.000136,2]
[353346884,1739788245586,-1100.0,0.000136,4]
[353346885,1739788245595,-159.58893329,0.00013616,2]
[353346886,1739788245605,-1000.0,0.00013669,2]
[353346887,1739788245615,-167.18840629,0.00013671,2]
[353346888,1739788245626,-23899.81139563,0.0001368,2]
[353346889,1739788245635,-1213541.28130149,0.00013698,3]
[353346890,1739788246381,-696.26475001,0.00012331,2]
[353346891,1739788246399,-1327.73524999,0.00012331,2]
[353346892,1739788246408,-31721.66568378,0.00013698,3]
[353346893,1739788246457,-2230.01930716,0.00013698,3]
[353346894,1739788246469,-1390.5892,0.00013698,3]
[353346895,1739788246707,-839.0514744,0.00013698,3]
[353346907,1739789255734,234.17811191,0.00020144,120]
[353347315,1739789432318,-500.0,0.00010058,2]
[353347316,1739789432328,-1000.0,0.00010058,2]
[353347317,1739789432338,-800.0,0.00010058,2]
[353347318,1739789432348,-503.34,0.00010058,2]
[353347319,1739789432357,-502.84,0.00010058,2]
[353347320,1739789432368,-507.44,0.00010058,2]
[353347321,1739789432377,-494.06,0.00010058,2]
[353347322,1739789432387,-502.02,0.00010058,2]
[353347323,1739789432397,-493.73,0.00010058,2]
[353347324,1739789432407,-504.66,0.00010058,2]
[353347325,1739789432417,-502.54,0.00010058,2]
[353347326,1739789432427,-509.27,0.00010058,2]
[353347327,1739789432437,-503.24,0.00010058,2]
[353347328,1739789432446,-505.98,0.00010058,2]
[353347329,1739789432456,-497.55,0.00010058,2]
[353347330,1739789432466,-503.22,0.00010058,2]
[353347331,1739789432476,-495.25,0.00010058,2]
[353347332,1739789432485,-495.99,0.00010058,2]
[353347333,1739789432495,-491.92,0.00010058,2]
[353347334,1739789432505,-498.43,0.00010058,2]
[353347335,1739789432515,-496.08,0.00010058,2]
[353347336,1739789432524,-493.42,0.00010058,2]
[353347337,1739789432534,-503.01,0.00010058,2]
[353347338,1739789432543,-503.24,0.00010058,2]
[353347339,1739789432553,-501.77,0.00010058,2]
[353347340,1739789432563,-503.84,0.00010058,2]
[353347341,1739789432572,-507.23,0.00010058,2]
[353347343,1739789432581,-505.33,0.00010058,2]
[353347344,1739789432591,-503.05,0.00010058,2]
[353347346,1739789432600,-507.04,0.00010058,2]
[353347348,1739789432610,-491.05,0.00010058,2]
[353347351,1739789432620,-508.41,0.00010058,2]
[353347352,1739789432629,-490.05,0.00010058,2]
[353347354,1739789432639,-493.22,0.00010058,2]
[353347357,1739789432649,-493.21,0.00010058,2]
[353347358,1739789432659,-499.35,0.00010058,2]
[353347360,1739789432669,-507.41,0.00010058,2]
[353347362,1739789432679,-494.4,0.00010058,2]
[353347364,1739789432689,-493.05,0.00010058,2]
[353347366,1739789432699,-506.79,0.00010058,2]
[353347368,1739789432708,-508.02,0.00010058,2]
[353347370,1739789432718,-500.85,0.00010058,2]
[353347372,1739789432728,-504.53,0.00010058,2]
[353347374,1739789432737,-499.24,0.00010058,2]
[353347376,1739789432747,-509.01,0.00010058,2]
[353347378,1739789432756,-508.99,0.00010058,2]
[353347380,1739789432766,-509.97,0.00010058,2]
[353347382,1739789432775,-496.62,0.00010058,2]
[353347384,1739789432786,-500.91,0.00010058,2]
[353347386,1739789432795,-493.92,0.00010058,2]
[353347389,1739789432810,-497.76,0.00010058,2]
[353347391,1739789432820,-506.32,0.00010058,2]
[353347393,1739789432830,-505.32,0.00010058,2]
[353347395,1739789432840,-501.08,0.00010058,2]
[353347397,1739789432849,-504.82,0.00010058,2]
[353347399,1739789432859,-157.28,0.00010137,2]
[353347401,1739789432869,-1000.0,0.00010411,2]
[353347403,1739789432879,-1000.0,0.00010411,2]
[353347405,1739789432888,-1000.0,0.00010411,2]
[353347407,1739789432897,-1000.0,0.00010411,2]
[353347409,1739789432908,-1000.0,0.00010411,2]
[353347411,1739789432918,-1000.0,0.00010411,2]
[353347413,1739789432928,-1000.0,0.00010411,2]
[353347415,1739789432940,-151.91,0.00010558,2]
[353347417,1739789432950,-151.14,0.00010558,2]
[353347419,1739789432960,-959.2851119,0.00010941,2]
[353347421,1739789432970,-497.83,0.00011174,2]
[353347423,1739789432980,-494.56,0.00011193,2]
[353347425,1739789432989,-1000.0,0.00011233,2]
[353347427,1739789432999,-1000.0,0.00011233,2]
[353347429,1739789433009,-1000.0,0.00011233,2]
[353347431,1739789433019,-1000.0,0.00011233,2]
[353347433,1739789433028,-1000.0,0.00011233,2]
[353347435,1739789433038,-1000.0,0.00011233,2]
[353347437,1739789433048,-1000.0,0.00011233,2]
[353347439,1739789433057,-1109.0,0.00011233,2]
[353347441,1739789433067,-495.98,0.00011233,2]
[353347443,1739789433077,-506.79,0.00011311,2]
[353347445,1739789433088,-1000.0,0.00011428,2]
[353347447,1739789433097,-1000.0,0.00011428,2]
[353347449,1739789433108,-1000.0,0.00011428,2]
[353347450,1739789433118,-1000.0,0.00011428,2]
[353347451,1739789433128,-1000.0,0.00011428,2]
[353347452,1739789433138,-1000.0,0.00011428,2]
[353347453,1739789433149,-1000.0,0.00011428,2]
[353347454,1739789433160,-1000.0,0.00011428,2]
[353347455,1739789433171,-1000.0,0.00011428,2]
[353347456,1739789433181,-800.0,0.00011428,2]
[353347457,1739789433192,-499.21,0.00011469,2]
[353347458,1739789433203,-493.86,0.00011469,2]
[353347460,1739789433213,-1000.0,0.00011498,2]
[353347462,1739789433223,-1000.0,0.00011498,2]
[353347464,1739789433232,-1000.0,0.00011498,2]
[353347466,1739789433242,-1000.0,0.00011498,2]
[353347468,1739789433251,-1000.0,0.00011498,2]
[353347470,1739789433262,-1000.0,0.00011498,2]
[353347472,1739789433272,-1000.0,0.00011498,2]
[353347474,1739789433282,-1000.0,0.00011498,2]
[353347476,1739789433291,-1000.0,0.00011498,2]
[353347478,1739789433301,-1000.0,0.00011498,2]
[353347481,1739789433316,-1000.0,0.00011498,2]
[353347483,1739789433325,-1000.0,0.00011498,2]
[353347485,1739789433335,-1000.0,0.00011498,2]
[353347487,1739789433345,-1000.0,0.00011498,2]
[353347489,1739789433355,-1000.0,0.00011498,2]
[353347491,1739789433366,-1000.0,0.00011498,2]
[353347493,1739789433375,-1000.0,0.00011498,2]
[353347495,1739789433385,-1000.0,0.0001158,2]
[353347497,1739789433395,-507.87,0.00011779,2]
[353347499,1739789433405,-1000.0,0.00011869,2]
[353347501,1739789433415,-1000.0,0.00011994,2]
[353347503,1739789433425,-250.0,0.00012052,2]
[353347505,1739789433435,-1000.0,0.00012058,2]